fUST/lending_fUST_20250821
["ID","MTS","AMOUNT","RATE_DAILY","PERIOD"]
[380397566,1755727840525,-662.87,0.00027062,7]
[380397567,1755727840535,-150.81405309,0.00027073,2]
[380397568,1755727840544,-16852.2030804,0.00027076,2]
[380397569,1755727840553,-168.0,0.00027076,2]
[380397570,1755727840562,-1000.0,0.0002708,5]
[380397571,1755727840571,-2120.14076983,0.00027086,2]
[380397572,1755727840585,-262.172738,0.00027086,7]
[380397573,1755727840609,-151.0,0.00027086,7]
[380397574,1755727840637,-151.0,0.00027086,7]
[380397575,1755727840666,-151.0,0.00027086,7]
[380397576,1755727840690,-151.699383,0.00027086,7]
[380397577,1755727840715,-151.0,0.00027086,7]
[380397578,1755727840739,-151.0,0.00027086,7]
[380397579,1755727840762,-193.738354,0.00027086,7]
[380397580,1755727840783,-151.0,0.00027086,7]
[380397581,1755727840806,-151.0,0.00027086,7]
[380397582,1755727840829,-151.0,0.00027086,7]
[380397583,1755727840850,-151.0,0.00027086,7]
[380397584,1755727840872,-151.0,0.00027086,7]
[380397585,1755727840899,-222.35384,0.00027086,7]
[380397586,1755727840911,-151.290743,0.00027086,7]
[380397587,1755727840920,-151.436135,0.00027086,7]
[380397588,1755727840929,-151.0,0.00027086,7]
[380397589,1755727840939,-151.0,0.00027086,7]
[380397590,1755727840947,-151.0,0.00027086,7]
[380397591,1755727840956,-151.0,0.00027086,7]
[380397592,1755727840965,-151.0,0.00027086,7]
[380397593,1755727840974,-206.383516,0.00027086,7]
[380397594,1755727840983,-151.0,0.00027086,7]
[380397595,1755727840992,-151.0,0.00027086,7]
[380397596,1755727841001,-151.0,0.00027086,7]
[380397597,1755727841010,-151.0,0.00027086,7]
[380397598,1755727841020,-198.96128,0.00027086,7]
[380397599,1755727841029,-151.0,0.00027086,7]
[380397600,1755727841038,-151.0,0.00027086,7]
[380397601,1755727841048,-151.0,0.00027086,7]
[380397602,1755727841058,-151.0,0.00027086,7]
[380397603,1755727841067,-370000.0,0.00027086,2]
[380397604,1755727841076,-1000.0,0.000271,5]
[380397605,1755727841086,-568.31871111,0.00027102,7]
[380397606,1755727841095,-800.0,0.00027113,2]
[380397607,1755727841104,-500.0,0.00027114,2]
[380397608,1755727841113,-800.0,0.00027114,2]
[380397609,1755727841122,-460.0,0.00027119,2]
[380397610,1755727841131,-1000.0,0.0002712,5]
[380397611,1755727841140,-998.6940768,0.00027123,3]
[380397612,1755727841150,-800.0,0.00027124,2]
[380397613,1755727841159,-1100.0,0.00027133,2]
[380397614,1755727841168,-1100.0,0.00027134,2]
[380397615,1755727841177,-1000.0,0.0002714,5]
[380397616,1755727841186,-500.0,0.00027142,2]
[380397617,1755727841195,-500.0,0.00027146,2]
[380397618,1755727841204,-500.0,0.00027146,2]
[380397619,1755727841213,-168.0,0.0002716,2]
[380397620,1755727841222,-1000.0,0.0002716,5]
[380397621,1755727841231,-662.87,0.00027162,7]
[380397622,1755727841240,-201.06147971,0.0002717,2]
[380397623,1755727841249,-199.03297309,0.00027173,2]
[380397624,1755727841258,-653.35,0.00027176,3]
[380397625,1755727841267,-1000.0,0.0002718,5]
[380397626,1755727841276,-1141.367745,0.0002718,5]
[380397627,1755727841285,-1000.0,0.00027194,2]
[380397628,1755727841294,-2000.0,0.000272,2]
[380397629,1755727841303,-203.97,0.000272,2]
[380397630,1755727841312,-160.0,0.000272,3]
[380397631,1755727841322,-160.0,0.000272,3]
[380397632,1755727841331,-6374.4,0.000272,7]
[380397633,1755727841340,-1348.29942975,0.000272,2]
[380397634,1755727841354,-17495.10057025,0.000272,2]
[380397635,1755727841364,-4008.79,0.000272,7]
[380397636,1755727841373,-151.0,0.000272,13]
[380397637,1755727841382,-151.0,0.000272,14]
[380397638,1755727841458,-151.0,0.000272,10]
[380397639,1755727841467,-1000.0,0.000272,5]
[380397640,1755727841476,-1000.0,0.000272,5]
[380397641,1755727841485,-303.35238575,0.000272,2]
[380397642,1755727841495,-1558.215259,0.000272,2]
[380397643,1755727841504,-250.0,0.000272,10]
[380397644,1755727841514,-3045.26934963,0.00027202,2]
[380397645,1755727841527,-172.57443399,0.00027202,2]
[380397646,1755727841537,-2425.61817424,0.00027205,2]
[380397647,1755727841546,-1602.06861303,0.00027205,2]
[380397648,1755727841555,-500.0,0.0002723,2]
[380397649,1755727841565,-200.0,0.00027236,30]
[380397650,1755727841574,-200.0,0.00027236,30]
[380397651,1755727841583,-357.20994865,0.00027236,30]
[380397652,1755727841593,-800.0,0.00027244,2]
[380397653,1755727841602,-500.0,0.00027257,2]
[380397654,1755727841611,-302.54622906,0.0002726,18]
[380397655,1755727841621,-662.87,0.00027262,7]
[380397656,1755727841630,-800.0,0.00027281,2]
[380397657,1755727841641,-1000.0,0.00027286,12]
[380397658,1755727841650,-18928.03849837,0.00027289,2]
[380397659,1755727841661,-14914.31447912,0.00027289,2]
[380397660,1755727841674,-1824.2842084,0.00027289,2]
[380397661,1755727841686,-2970.20000166,0.00027289,2]
[380397662,1755727841697,-11430.0,0.00027289,2]
[380397663,1755727841708,-4634.70088665,0.00027289,2]
[380397664,1755727841719,-775.8445213,0.00027289,2]
[380397665,1755727841730,-4097.80733666,0.00027289,2]
[380397666,1755727841955,-2454.96186153,0.0002477,2]
[380397667,1755727841967,-654.4603919,0.0002477,2]
[380397675,1755727843648,-39109.47287874,0.0002477,2]
[380397676,1755727843666,-232.24568399,0.00026441,2]
[380397677,1755727843679,-78368.48569557,0.00027289,2]
[380397678,1755727843695,-151.0,0.00027289,7]
[380397679,1755727843721,-151.0,0.00027289,7]
[380397680,1755727843753,-151.0,0.00027289,7]
[380397681,1755727843776,-353.28192114,0.00027293,2]
[380397682,1755727843804,-159.338,0.00027293,2]
[380397683,1755727843830,-200.0,0.00027294,30]
[380397684,1755727843857,-200.0,0.00027294,30]
[380397685,1755727843882,-200.0,0.00027294,30]
[380397686,1755727843924,-1100.0,0.00027295,2]
[380397687,1755727843957,-160.0,0.000273,3]
[380397688,1755727843981,-12687.94051737,0.000273,30]
[380397689,1755727844007,-160.0,0.000273,30]
[380397690,1755727844030,-250.0,0.000273,10]
[380397691,1755727844044,-528.77847288,0.000273,30]
[380397692,1755727844058,-800.0,0.000273,2]
[380397693,1755727844072,-417.15472785,0.000273,30]
[380397694,1755727844086,-200.0,0.00027301,2]
[380397695,1755727844099,-500.0,0.00027301,2]
[380397696,1755727844113,-151.0,0.00027302,7]
[380397697,1755727844126,-151.0,0.00027302,7]
[380397698,1755727844140,-209.200914,0.00027302,7]
[380397699,1755727844154,-151.0,0.00027302,7]
[380397700,1755727844168,-218.222086,0.00027302,7]
[380397701,1755727844183,-151.0,0.00027302,7]
[380397702,1755727844196,-151.0,0.00027302,7]
[380397703,1755727844211,-151.0,0.00027302,7]
[380397704,1755727844225,-151.0,0.00027302,7]
[380397705,1755727844240,-151.0,0.00027302,7]
[380397706,1755727844255,-151.0,0.00027302,7]
[380397707,1755727844270,-225.249424,0.00027302,7]
[380397708,1755727844284,-151.867163,0.00027302,7]
[380397709,1755727844309,-151.0,0.00027302,7]
[380397710,1755727844322,-151.0,0.00027302,7]
[380397711,1755727844337,-151.0,0.00027302,7]
[380397712,1755727844352,-240.305469,0.00027302,7]
[380397713,1755727844366,-161.488112,0.00027302,7]
[380397714,1755727844381,-151.0,0.00027302,7]
[380397715,1755727844396,-151.0,0.00027302,7]
[380397716,1755727844409,-151.0,0.00027302,7]
[380397717,1755727844430,-151.0,0.00027302,7]
[380397718,1755727844445,-151.0,0.00027302,7]
[380397719,1755727844539,-151.0,0.00027302,7]
[380397720,1755727844581,-151.0,0.00027302,7]
[380397721,1755727844591,-151.0,0.00027302,7]
[380397722,1755727844600,-151.0,0.00027302,7]
[380397723,1755727844609,-151.0,0.00027302,7]
[380397724,1755727844618,-151.0,0.00027302,7]
[380397725,1755727844626,-151.0,0.00027302,7]
[380397726,1755727844635,-151.0,0.00027302,7]
[380397727,1755727844646,-151.0,0.00027302,7]
[380397728,1755727844655,-151.0,0.00027302,7]
[380397729,1755727844665,-151.0,0.00027302,7]
[380397730,1755727844674,-151.0,0.00027302,7]
[380397731,1755727844684,-151.0,0.00027302,7]
[380397732,1755727844694,-151.0,0.00027302,7]
[380397733,1755727844703,-151.0,0.00027302,7]
[380397734,1755727844712,-151.0,0.00027302,7]
[380397735,1755727844722,-151.0,0.00027302,7]
[380397736,1755727844732,-210.472791,0.00027302,7]
[380397737,1755727844741,-151.0,0.00027305,7]
[380397738,1755727844754,-151.0,0.00027305,7]
[380397739,1755727844765,-151.0,0.00027305,7]
[380397740,1755727844774,-151.0,0.00027305,7]
[380397741,1755727844783,-151.0,0.00027305,7]
[380397742,1755727844794,-151.0,0.00027305,7]
[380397743,1755727844804,-151.0,0.00027305,7]
[380397744,1755727844813,-151.0,0.00027305,7]
[380397745,1755727844823,-151.0,0.00027305,7]
[380397746,1755727844833,-10.49614346,0.00027305,7]
[380397747,1755727844850,-140.50385654,0.00027305,7]
[380397748,1755727844860,-235.469998,0.00027305,7]
[380397749,1755727844869,-151.0,0.00027305,7]
[380397750,1755727844879,-151.0,0.00027305,7]
[380397751,1755727844889,-223939.04722698,0.00027305,20]
[380397752,1755727844900,-2783.91475173,0.00027305,20]
[380397753,1755727844911,-468.942,0.00027305,20]
[380397757,1755727846446,-500.0,0.0002477,2]
[380397758,1755727846455,-408.0,0.0002643,2]
[380397759,1755727846464,-500.0,0.00026588,2]
[380397760,1755727846473,-595.56087861,0.00027305,20]
[380397763,1755727937992,448.07,0.00027397,120]
[380397764,1755728013023,277.4,0.00027305,120]
[380397767,1755728466790,405.733291,0.00027397,120]
[380397768,1755728519949,118047.29719333,0.00027315,60]
[380397770,1755728679463,171.744521,0.00013699,2]
[380397810,1755728924606,15030.84134311,0.00018,2]
[380397819,1755728953156,-184.36181287,0.00019528,2]
[380397820,1755728953191,-855.04764209,0.000199,2]
[380397821,1755728953225,-855.047642,0.00020835,2]
[380397822,1755728953258,-1209.32237477,0.00021,2]
[380397823,1755728953291,-203.17695948,0.00021,2]
[380397824,1755728953323,-855.047642,0.00021771,2]
[380397825,1755728953353,-57.99690222,0.0002192,2]
[380397861,1755729032390,1000.0,0.0002732,60]
[380397876,1755729032612,-107.43285808,0.0002192,2]
[380397878,1755729032621,-160.0,0.00023,2]
[380397881,1755729032631,-1147.5,0.00023392,2]
[380397883,1755729032640,-250.0,0.00023422,2]
[380397884,1755729032650,-171.235471,0.00023439,2]
[380397886,1755729032659,-1200.0,0.00023546,2]
[380397887,1755729032668,-216.9170744,0.00023647,2]
[380397888,1755729032677,-215.82729805,0.00023647,2]
[380397889,1755729032686,-160.0,0.00023647,2]
[380397890,1755729032695,-844.05985274,0.00023647,2]
[380397891,1755729032704,-232.24568399,0.00023647,2]
[380397892,1755729032713,-160.0,0.00023649,2]
[380397893,1755729032723,-160.0,0.00023649,2]
[380397894,1755729032731,-1285.35709586,0.00023962,3]
[380397926,1755729038653,-745.82290414,0.00023962,3]
[380397928,1755729038663,-300.0,0.00023989,2]
[380397930,1755729038672,-2660.34172342,0.0002399,2]
[380397932,1755729038682,-2232.32173475,0.000245,2]
[380397934,1755729038691,-1000.62724984,0.000245,2]
[380397936,1755729038701,-500.0,0.00024573,2]
[380397938,1755729038710,-500.0,0.00024573,2]
[380397940,1755729038719,-271.64496179,0.00024573,2]
[380397942,1755729038729,-501.07757065,0.00024573,2]
[380397944,1755729038738,-585.25058045,0.00024573,2]
[380397946,1755729038748,-500.0,0.00024573,2]
[380397948,1755729038757,-500.0,0.00024573,2]
[380397950,1755729038766,-468.73082083,0.00024573,2]
[380397952,1755729038775,-855.047642,0.00024577,2]
[380397954,1755729038785,-151.0,0.00024585,2]
[380397956,1755729038794,-500.0,0.00024585,2]
[380397958,1755729038803,-500.0,0.00024585,2]
[380397960,1755729038813,-500.0,0.00024585,2]
[380397962,1755729038822,-174.54633008,0.00024585,2]
[380397964,1755729038831,-594.07,0.0002459,3]
[380397966,1755729038840,-458.76,0.0002459,3]
[380397969,1755729038849,-229.38,0.0002459,3]
[380397972,1755729038858,-688.18,0.0002459,3]
[380397974,1755729038867,-500.0,0.00024599,2]
[380397976,1755729038877,-500.0,0.00024599,2]
[380397978,1755729038886,-500.0,0.00024599,2]
[380397980,1755729038895,-503.16883757,0.00024599,2]
[380397982,1755729038905,-169.08658882,0.00024599,2]
[380397984,1755729038914,-500.0,0.00024599,2]
[380397986,1755729038923,-500.0,0.00024599,2]
[380397988,1755729038932,-500.0,0.00024599,2]
[380397990,1755729038942,-500.0,0.00024599,2]
[380397992,1755729038951,-326.92352339,0.00024599,2]
[380397994,1755729038960,-270.18419753,0.00024599,2]
[380397996,1755729038969,-500.0,0.00024599,2]
[380397998,1755729038979,-500.0,0.00024599,2]
[380398000,1755729038989,-500.0,0.00024599,2]
[380398002,1755729038998,-500.0,0.00024599,2]
[380398004,1755729039008,-500.0,0.00024599,2]
[380398006,1755729039017,-500.0,0.00024599,2]
[380398008,1755729039026,-500.0,0.00024599,2]
[380398010,1755729039035,-171.21056648,0.00024599,2]
[380398012,1755729039044,-500.0,0.00024599,2]
[380398014,1755729039053,-500.0,0.00024599,2]
[380398016,1755729039063,-368.63247248,0.00024599,2]
[380398018,1755729039073,-176.6842944,0.00024599,2]
[380398020,1755729039082,-500.0,0.00024599,2]
[380398022,1755729039091,-500.0,0.00024599,2]
[380398024,1755729039100,-500.0,0.00024599,2]
[380398026,1755729039110,-500.0,0.00024599,2]
[380398028,1755729039119,-500.0,0.00024599,2]
[380398030,1755729039129,-500.0,0.00024599,2]
[380398032,1755729039140,-500.0,0.00024599,2]
[380398043,1755729039231,-500.0,0.00024599,2]
[380398045,1755729039241,-500.0,0.00024599,2]
[380398047,1755729039251,-500.0,0.00024599,2]
[380398049,1755729039261,-500.0,0.00024599,2]
[380398051,1755729039271,-500.0,0.00024599,2]
[380398053,1755729039282,-500.0,0.00024599,2]
[380398055,1755729039292,-500.0,0.00024599,2]
[380398057,1755729039303,-500.0,0.00024599,2]
[380398059,1755729039313,-500.0,0.00024599,2]
[380398061,1755729039323,-500.0,0.00024599,2]
[380398063,1755729039332,-500.0,0.00024599,2]
[380398065,1755729039343,-500.0,0.00024599,2]
[380398067,1755729039353,-500.0,0.00024599,2]
[380398069,1755729039363,-500.0,0.00024599,2]
[380398071,1755729039373,-370000.0,0.000246,2]
[380398073,1755729039383,-4041.29,0.000246,7]
[380398075,1755729039394,-7740.34,0.000246,7]
[380398077,1755729039404,-12687.94051737,0.000246,7]
[380398079,1755729039414,-643.77,0.000246,7]
[380398081,1755729039423,-216.9170744,0.000246,7]
[380398083,1755729039433,-844.05985274,0.000246,7]
[380398085,1755729039443,-215.82729805,0.000246,7]
[380398087,1755729039452,-160.0,0.000246,7]
[380398089,1755729039462,-375.94359665,0.00024667,2]
[380398091,1755729039471,-500.0,0.0002468,2]
[380398093,1755729039481,-500.0,0.0002468,2]
[380398095,1755729039491,-151.0,0.0002468,2]
[380398097,1755729039500,-151.0,0.0002468,2]
[380398099,1755729039510,-151.0,0.0002468,2]
[380398101,1755729039519,-151.0,0.0002468,2]
[380398103,1755729039529,-198.0,0.0002468,2]
[380398105,1755729039539,-500.0,0.0002468,2]
[380398106,1755729039549,-277.4,0.000248,2]
[380398107,1755729039558,-26963.5249287,0.000248,2]
[380398108,1755729039567,-2232.32173474,0.00024852,2]
[380398109,1755729039577,-578.20443966,0.00024873,2]
[380398110,1755729039586,-500.0,0.00024873,2]
[380398111,1755729039595,-503.66116912,0.00024873,2]
[380398112,1755729039605,-249.12013894,0.00024873,2]
[380398113,1755729039615,-500.0,0.00024873,2]
[380398114,1755729039624,-500.0,0.00024873,2]
[380398115,1755729039633,-500.0,0.00024897,2]
[380398116,1755729039642,-518.89027256,0.00024897,2]
[380398117,1755729039652,-518.89027256,0.00024897,2]
[380398118,1755729039661,-518.89027256,0.00024897,2]
[380398119,1755729039671,-500.0,0.00024897,2]
[380398120,1755729039680,-518.89027256,0.00024897,2]
[380398121,1755729039689,-500.0,0.00024897,2]
[380398122,1755729039698,-518.89027256,0.00024897,2]
[380398123,1755729039708,-176.0005839,0.00024897,2]
[380398124,1755729039717,-518.89027256,0.00024897,2]
[380398125,1755729039726,-518.89027256,0.00024897,2]
[380398126,1755729039735,-518.89027256,0.00024897,2]
[380398127,1755729039745,-518.89027256,0.00024897,2]
[380398128,1755729039754,-597015.265264,0.000249,2]
[380398129,1755729039764,-160.0,0.00024911,2]
[380398130,1755729039774,-3370.44061609,0.00024921,2]
[380398131,1755729039783,-5492.29492984,0.00024931,7]
[380398132,1755729039792,-500.0,0.00024954,2]
[380398133,1755729039801,-500.0,0.00024954,2]
[380398134,1755729039811,-239.84615473,0.00024954,2]
[380398135,1755729039820,-151.0,0.00024954,2]
[380398136,1755729039829,-172.58841261,0.00024954,2]
[380398137,1755729039839,-151.000002,0.00024954,2]
[380398138,1755729039848,-500.0,0.00024954,2]
[380398139,1755729039857,-2046.88959096,0.00025,14]
[380398140,1755729039867,-16062.64592512,0.00025,2]
[380398141,1755729039876,-413.57440076,0.0002502,2]
[380398142,1755729039886,-2232.32173474,0.00025204,2]
[380398143,1755729039895,-200.81188509,0.00025215,2]
[380398144,1755729039904,-500.0,0.00025228,2]
[380398145,1755729039914,-500.0,0.00025228,2]
[380398146,1755729039923,-151.0,0.00025228,2]
[380398147,1755729039932,-500.0,0.00025228,2]
[380398148,1755729039941,-196.5037321,0.00025421,2]
[380398149,1755729039951,-1000.0,0.00025421,2]
[380398150,1755729039960,-260.0,0.00025459,2]
[380398151,1755729039969,-900.0,0.00025469,3]
[380398152,1755729039978,-500.0,0.00025502,2]
[380398153,1755729039987,-406.0,0.00025502,2]
[380398154,1755729039997,-165.79676134,0.00025502,2]
[380398155,1755729040006,-500.0,0.00025502,2]
[380398156,1755729040015,-855.047642,0.00025513,3]
[380398157,1755729040025,-2232.32173474,0.00025555,2]
[380398158,1755729040035,-703.0,0.00025666,7]
[380398159,1755729040044,-500.0,0.00025776,2]
[380398160,1755729040053,-500.0,0.00025776,2]
[380398161,1755729040063,-1000.62724983,0.0002586,2]
[380398162,1755729040073,-643.77,0.000259,7]
[380398163,1755729040082,-1441.8617517,0.000259,2]
[380398164,1755729040092,-2232.32173474,0.00025907,2]
[380398165,1755729040101,-705.0,0.00025922,2]
[380398166,1755729040111,-198.861,0.0002593,2]
[380398167,1755729040120,-660.02912857,0.0002593,2]
[380398168,1755729040130,-1000.0,0.00025931,5]
[380398169,1755729040141,-151.0,0.00025954,2]
[380398170,1755729040155,-1188.14,0.0002596,3]
[380398171,1755729040165,-917.52,0.0002596,3]
[380398172,1755729040175,-458.76,0.0002596,3]
[380398173,1755729040185,-1500.0,0.00025968,2]
[380398174,1755729040194,-3370.44061609,0.0002599,2]
[380398175,1755729040204,-1000.02,0.00026,30]
[380398176,1755729040214,-38832.12316182,0.00026,10]
[380398177,1755729040223,-1847.17576609,0.00026,7]
[380398178,1755729040233,-411417.20535264,0.00026,15]
[380398179,1755729040249,-9383.50991903,0.00026,15]
[380398180,1755729040260,-2000.0,0.00026,15]
[380398181,1755729040702,-359.50100004,0.00026,15]
[380398405,1755729043678,-138508.95268243,0.00026,15]
[380398422,1755729043840,-3481.18019382,0.00026,15]
[380398553,1755729047043,-3000.0,0.00024088,6]
[380398554,1755729047053,-12023.11043328,0.00026,15]
[380398555,1755729047063,-5766.84288282,0.00026,10]
[380398556,1755729047072,-417.15472785,0.00026,10]
[380398557,1755729047081,-360.0,0.00026007,2]
[380398558,1755729047090,-420.0,0.00026015,2]
[380398559,1755729047100,-386.7798227,0.00026026,2]
[380398560,1755729047109,-386.7798227,0.00026026,2]
[380398561,1755729047119,-386.7798227,0.00026026,2]
[380398562,1755729047128,-580.3025508,0.00026026,2]
[380398563,1755729047141,-199.0,0.0002603,30]
[380398564,1755729047150,-660.02912857,0.0002603,2]
[380398565,1755729047160,-500.0,0.0002605,2]
[380398566,1755729047169,-500.0,0.0002605,2]
[380398567,1755729047180,-703.0,0.00026115,2]
[380398568,1755729047188,-1000.02,0.0002613,30]
[380398569,1755729047198,-660.02912857,0.0002613,2]
[380398570,1755729047207,-153.0,0.00026142,2]
[380398571,1755729047216,-153.0,0.00026142,2]
[380398572,1755729047226,-293.9452039,0.00026142,2]
[380398573,1755729047236,-153.0,0.00026142,2]
[380398574,1755729047246,-293.9452039,0.00026142,2]
[380398575,1755729047254,-581.0009137,0.00026142,2]
[380398576,1755729047265,-153.0,0.00026142,2]
[380398577,1755729047274,-660.02912857,0.0002623,2]
[380398578,1755729047283,-702.0,0.00026258,2]
[380398579,1755729047292,-965.05,0.00026299,49]
[380398580,1755729047302,-482.52,0.00026299,49]
[380398581,1755729047311,-160.85,0.00026299,49]
[380398582,1755729047320,-500.0,0.00026324,2]
[380398583,1755729047330,-500.0,0.00026324,2]
[380398584,1755729047339,-660.02912857,0.0002633,2]
[380398585,1755729047348,-170.0,0.00026366,2]
[380398586,1755729047357,-500.0,0.00026397,5]
[380398587,1755729047366,-500.0,0.00026397,5]
[380398588,1755729047375,-500.0,0.00026397,5]
[380398589,1755729047385,-500.0,0.00026397,5]
[380398590,1755729047394,-500.0,0.00026397,5]
[380398591,1755729047403,-500.0,0.00026397,20]
[380398592,1755729047412,-500.0,0.00026397,5]
[380398593,1755729047422,-500.0,0.00026397,5]
[380398594,1755729047431,-500.0,0.00026397,20]
[380398595,1755729047440,-500.0,0.00026397,5]
[380398596,1755729047450,-500.0,0.00026397,5]
[380398597,1755729047459,-500.0,0.00026397,5]
[380398598,1755729047468,-500.0,0.00026397,20]
[380398599,1755729047477,-376.45193123,0.00026397,20]
[380398600,1755729047487,-660.02912857,0.0002643,2]
[380398601,1755729047496,-855.047642,0.00026448,5]
[380398602,1755729047505,-300.0,0.00026473,2]
[380398603,1755729047514,-3370.44061609,0.00026473,2]
[380398604,1755729047523,-4345.44956763,0.00026481,2]
[380398605,1755729047532,-973.0,0.00026483,2]
[380398606,1755729047543,-408.0,0.00026483,2]
[380398607,1755729047552,-4041.29,0.000265,7]
[380398608,1755729047562,-7033.86411648,0.000265,7]
[380398616,1755729183582,261.59689511,0.00027397,120]
[380398617,1755729215202,4201.0,0.00027,120]
[380398618,1755729444800,321.64852844,0.00027397,120]
[380398624,1755729537552,304.299968,0.00027397,120]
[380398625,1755729617341,1877.3439144,0.0002739,120]
[380398626,1755729699700,161.427515,0.00013699,2]
[380398627,1755729759814,513.0,0.00027,120]
[380398628,1755729816416,500.0,0.00027397,120]
[380398629,1755729830035,675.0,0.00027397,120]
[380398632,1755729935133,-719.98440118,0.000199,2]
[380398633,1755729935153,-157.19,0.0002,3]
[380398634,1755729935175,-719.98440099,0.00020835,2]
[380398635,1755729935196,-719.98440099,0.00021771,2]
[380398636,1755729935217,-107.60107589,0.00022706,2]
[380398637,1755730019081,-245.64581918,0.000199,2]
[380398638,1755730152094,-632.96276457,0.000199,2]
[380398639,1755730154134,-2.60867609,0.000199,2]
[380398640,1755730154159,-635.57144056,0.00020835,2]
[380398641,1755730154182,-635.57144056,0.00022706,2]
[380398642,1755730154203,-171.235471,0.00022718,2]
[380398643,1755730154223,-160.0,0.00023,2]
[380398644,1755730154246,-1269.8134826,0.00023027,2]
[380398645,1755730154268,-170.0,0.00023646,2]
[380398646,1755730154288,-300.0,0.00023646,2]
[380398647,1755730154309,-3418.47192935,0.00023647,2]
[380398723,1755730232095,-375.94359665,0.00023671,2]
[380398725,1755730232105,-31.77519955,0.00023671,2]
[380398869,1755730242872,-128.22480045,0.00023671,2]
[380398870,1755730242882,-232.24568399,0.00023673,2]
[380398871,1755730242891,-216.9170744,0.00023673,2]
[380398872,1755730242901,-215.82729805,0.00023673,2]
[380398873,1755730242911,-160.0,0.00023673,2]
[380398874,1755730242921,-844.05985274,0.00023673,2]
[380398875,1755730242930,-160.0,0.00023673,2]
[380398876,1755730242940,-300.0,0.00024399,2]
[380398877,1755730242950,-1373.51116439,0.000244,2]
[380398878,1755730242959,-1356.63505207,0.000244,2]
[380398879,1755730242968,-667.08483322,0.000244,2]
[380398880,1755730242978,-10200.95344921,0.000244,2]
[380398881,1755730242987,-240.02769707,0.000244,2]
[380398882,1755730242996,-427.4,0.0002449,3]
[380398884,1755730243005,-213.7,0.0002449,3]
[380398885,1755730243015,-213.7,0.0002449,3]
[380398886,1755730243023,-500.0,0.00024499,2]
[380398887,1755730243033,-207.62583028,0.00024499,2]
[380398888,1755730243042,-500.0,0.00024499,2]
[380398889,1755730243053,-320.02546596,0.00024499,2]
[380398890,1755730243063,-500.0,0.00024499,2]
[380398891,1755730243072,-500.0,0.00024499,2]
[380398892,1755730243081,-500.0,0.00024499,2]
[380398893,1755730243090,-408.52047716,0.00024499,2]
[380398894,1755730243099,-500.0,0.00024499,2]
[380398895,1755730243108,-500.0,0.00024499,2]
[380398896,1755730243118,-450.06021978,0.00024499,2]
[380398897,1755730243128,-642.10341982,0.00024499,2]
[380398898,1755730243137,-370000.0,0.000245,2]
[380398899,1755730243146,-3233.03,0.000245,7]
[380398900,1755730243155,-6262.92,0.000245,7]
[380398901,1755730243164,-579.4,0.000245,7]
[380398902,1755730243173,-216.9170744,0.000245,7]
[380398903,1755730243182,-844.05985274,0.000245,7]
[380398904,1755730243190,-215.82729805,0.000245,7]
[380398905,1755730243200,-160.0,0.000245,7]
[380398906,1755730243209,-487.21,0.00024569,7]
[380398907,1755730243218,-635.57144056,0.00024577,2]
[380398908,1755730243227,-487.21,0.00024769,7]
[380398909,1755730243236,-12976.1963719,0.000248,2]
[380398910,1755730243245,-1356.63505205,0.00024801,2]